bitfinex/quotes_BTCUSD_20250303
["timestamp","ask_amount","ask_price","bid_price","bid_amount"]
[1741043463713,0.02209783,86627.0,86622.0,0.01454085]
[1741043463989,0.0560254,86624.0,86614.0,0.0073392]
[1741043464219,0.230904,86616.0,86615.0,0.01454085]
[1741043464549,0.230902,86617.0,86615.0,0.01454085]
[1741043465089,0.0560254,86623.0,86614.0,0.0003392]
[1741043465295,0.230906,86616.0,86614.0,0.0003392]
[1741043465704,0.0560254,86623.0,86615.0,0.128]
[1741043465903,0.0560254,86623.0,86622.0,0.24542885]
[1741043466363,0.09060339,86623.0,86622.0,0.24542885]
[1741043467789,0.02149093,86623.0,86622.0,0.24542885]
[1741043468393,0.02149093,86623.0,86622.0,0.25242885]
[1741043470355,0.01087009,86633.0,86632.0,0.230861]
[1741043470501,0.01087009,86633.0,86632.0,0.24540185]
[1741043472114,0.01087009,86633.0,86632.0,0.25240185]
[1741043472327,0.01087009,86633.0,86632.0,0.33510185]
[1741043472814,0.01087009,86633.0,86632.0,0.24540185]
[1741043473043,0.230874,86628.0,86619.0,0.230894]
[1741043473408,0.01087009,86633.0,86627.0,0.09348]
[1741043473882,0.230872,86628.0,86627.0,0.09348]
[1741043474446,0.230893,86620.0,86619.0,0.00011836]
[1741043474654,0.230893,86620.0,86619.0,0.09355836]
[1741043474822,0.3,86621.0,86619.0,0.09355836]
[1741043475037,0.230893,86620.0,86619.0,0.09355836]
[1741043475193,0.530893,86620.0,86619.0,0.09355836]
[1741043475397,0.530893,86620.0,86619.0,0.00011836]
[1741043475840,0.530893,86620.0,86619.0,0.00711836]
[1741043476185,0.530893,86620.0,86619.0,0.00011836]
[1741043476697,0.530893,86620.0,86619.0,0.00611836]
[1741043478024,0.530893,86620.0,86619.0,0.00011836]
[1741043478456,0.530893,86620.0,86619.0,0.00411836]
[1741043479010,0.530893,86620.0,86619.0,0.00011836]
[1741043479273,0.530893,86620.0,86619.0,0.00311836]
[1741043479683,0.579093,86620.0,86619.0,0.00311836]
[1741043480828,0.76024495,86620.0,86619.0,0.00311836]
[1741043481030,0.230906,86615.0,86614.0,5.6e-07]
[1741043481242,0.530906,86615.0,86614.0,5.6e-07]
[1741043481778,0.231021,86572.0,86566.0,0.0003394]
[1741043481985,0.231021,86572.0,86567.0,0.09344]
[1741043482214,0.3,86588.0,86566.0,0.0003394]
[1741043482384,0.3,86578.0,86570.0,0.46205]
[1741043482603,0.3,86578.0,86572.0,0.231021]
[1741043482748,0.3,86578.0,86571.0,0.231022]
[1741043483075,0.3,86580.0,86573.0,0.231017]
[1741043483280,0.531,86580.0,86573.0,0.231017]
[1741043483497,0.02150054,86577.0,86573.0,0.231017]
[1741043484303,0.02150054,86577.0,86571.0,0.3298567]
[1741043484304,0.231021,86572.0,86571.0,0.0988347]
[1741043484460,0.231018,86573.0,86571.0,0.0938347]
[1741043484668,0.32150054,86576.0,86571.0,0.3248577]
[1741043484870,0.32150054,86576.0,86572.0,0.46204]
[1741043485122,0.32150054,86576.0,86572.0,0.23102]
[1741043485249,0.32150054,86576.0,86574.0,0.231015]
[1741043485454,0.32150054,86576.0,86575.0,0.231013]
[1741043485704,0.02150054,86576.0,86575.0,0.230013]
[1741043486389,0.05582316,86576.0,86575.0,0.230013]
[1741043487202,0.05582316,86576.0,86575.0,0.24455385]
[1741043487363,0.05582316,86576.0,86575.0,0.32185385]
[1741043487565,0.02150054,86576.0,86575.0,0.32185385]
[1741043487810,0.02150054,86576.0,86575.0,0.36805385]
[1741043488386,0.22988637,86599.0,86576.0,0.01454085]
[1741043488585,0.10312245,86617.0,86576.0,0.0161577]
[1741043488858,0.230939,86603.0,86576.0,0.0161577]
[1741043488969,0.230943,86602.0,86595.0,0.230958]
[1741043489174,0.230943,86602.0,86596.0,0.324397]
[1741043489407,0.3,86602.0,86596.0,0.324397]
[1741043489602,0.530942,86602.0,86597.0,0.00580259]
[1741043489862,0.230944,86601.0,86597.0,0.00580259]
[1741043490093,0.230944,86601.0,86596.0,0.09344]
[1741043490094,0.3,86602.0,86596.0,0.09344]
[1741043490242,0.231,86580.0,86579.0,0.09344]
[1741043490422,0.1,86613.0,86575.0,0.007]
[1741043490626,0.231005,86579.0,86574.0,0.09344]
[1741043490823,0.231005,86579.0,86575.0,0.0003947]
[1741043491099,0.230997,86581.0,86575.0,0.0003947]
[1741043491340,0.231006,86578.0,86575.0,0.0003947]
[1741043491896,0.3,86583.0,86575.0,0.0003947]
[1741043492101,0.03427811,86577.0,86575.0,0.0003947]
[1741043492942,0.23101,86576.0,86575.0,0.0003947]
[1741043493691,0.26528811,86576.0,86575.0,0.0003947]
[1741043494238,0.26528811,86576.0,86575.0,0.0073947]
[1741043495052,0.56528811,86576.0,86575.0,0.0073947]
[1741043495256,0.56528811,86576.0,86575.0,0.0003947]
[1741043495449,0.56528811,86576.0,86575.0,0.0073947]
[1741043495657,0.56628811,86576.0,86575.0,0.0073947]
[1741043496380,0.03527811,86576.0,86575.0,0.33584855]
[1741043496582,1.1e-07,86576.0,86575.0,0.33584855]
[1741043496807,0.230899,86618.0,86605.0,0.230933]
[1741043496957,0.0001696,86620.0,86605.0,0.324373]
[1741043497156,0.00187546,86620.0,86606.0,0.00581136]
[1741043497361,0.3,86613.0,86606.0,0.00581136]
[1741043497559,0.23093,86606.0,86605.0,0.09344]
[1741043498110,0.3,86607.0,86605.0,0.0948347]
[1741043498436,0.3,86607.0,86605.0,0.0938347]
[1741043498610,0.23093,86606.0,86605.0,0.0938347]
[1741043498835,0.3,86607.0,86605.0,0.0948347]
[1741043499455,0.3,86607.0,86606.0,0.00581136]
[1741043499813,0.23093,86606.0,86605.0,0.0948347]
[1741043500016,0.23093,86606.0,86605.0,0.0938347]
[1741043500216,0.3,86607.0,86605.0,0.0938347]
[1741043500855,0.3,86607.0,86606.0,0.00581136]
[1741043501063,0.3,86607.0,86605.0,0.0938347]
[1741043501258,0.3,86607.0,86606.0,0.00581136]
[1741043501809,0.3,86607.0,86605.0,0.0938347]
[1741043502010,0.3214549,86607.0,86606.0,0.00581136]
[1741043502212,0.5523829,86607.0,86606.0,0.00581136]
[1741043502413,0.3214549,86607.0,86606.0,0.00581136]
[1741043502611,0.3214549,86607.0,86605.0,0.0968347]
[1741043503165,0.3214549,86607.0,86606.0,0.00581136]
[1741043503464,0.0214549,86607.0,86606.0,0.00881136]
[1741043506108,0.0216247,86607.0,86606.0,0.00881136]
[1741043506286,0.0216247,86607.0,86606.0,0.23974136]
[1741043506686,0.0216247,86607.0,86606.0,0.25428221]
[1741043508239,7e-07,86607.0,86606.0,0.63048221]
[1741043508703,7e-07,86607.0,86606.0,0.64135221]
[1741043511385,0.0001696,86620.0,86619.0,0.230896]
[1741043511526,0.0001696,86620.0,86619.0,0.24543685]
[1741043511732,0.0001696,86620.0,86619.0,0.32726584]
[1741043512373,0.0001698,86671.0,86620.0,0.01454085]
[1741043512579,0.230763,86669.0,86660.0,0.230784]
[1741043512889,0.0001698,86671.0,86654.0,0.09336]
[1741043513096,0.0001698,86671.0,86666.0,0.230771]
[1741043513455,0.0001698,86671.0,86666.0,0.23615469]
[1741043513861,0.00028796,86667.0,86666.0,0.23615469]
[1741043516577,0.00028796,86667.0,86666.0,0.25069554]
[1741043518204,0.00028796,86667.0,86666.0,0.32769554]
[1741043519127,0.00028796,86667.0,86666.0,0.31315469]
[1741043519433,0.00028796,86667.0,86666.0,0.09870369]
[1741043519434,0.23105596,86667.0,86666.0,0.09870369]
[1741043519842,0.00028796,86667.0,86666.0,0.32947469]
[1741043520046,0.00028796,86667.0,86666.0,0.324091]
[1741043520249,0.00028796,86667.0,86666.0,0.66534028]
[1741043520453,0.00028796,86667.0,86666.0,0.79004028]
[1741043520655,0.00028796,86667.0,86666.0,0.77549943]
[1741043520863,0.00028796,86667.0,86666.0,0.79004028]
[1741043521148,0.00028796,86667.0,86666.0,0.09852843]
[1741043521367,0.23105596,86667.0,86666.0,0.00520843]
[1741043521569,0.23105596,86667.0,86661.0,0.09328]
[1741043521773,0.23105596,86667.0,86662.0,0.00515799]
[1741043521953,0.230774,86665.0,86662.0,0.00515799]
[1741043522131,0.23105596,86667.0,86662.0,0.00515799]
[1741043522339,0.230775,86665.0,86661.0,0.09328]
[1741043522645,0.02135279,86664.0,86662.0,0.00515799]
[1741043522853,0.230778,86663.0,86662.0,0.00515799]
[1741043523490,0.230778,86663.0,86661.0,0.09328]
[1741043523491,0.230781,86662.0,86661.0,0.09328]
[1741043525035,0.25213379,86662.0,86661.0,0.09328]
[1741043525635,0.25213379,86662.0,86661.0,0.324064]
[1741043525636,0.02135279,86662.0,86661.0,0.324064]
[1741043525836,0.02135279,86662.0,86661.0,0.09328]
[1741043526009,0.230771,86666.0,86661.0,0.09847272]
[1741043526211,0.230781,86662.0,86661.0,0.09847272]
[1741043526577,0.230781,86662.0,86661.0,0.09328]
[1741043527065,0.230797,86656.0,86650.0,0.230812]
[1741043527213,0.230801,86655.0,86651.0,0.09328]
[1741043527408,0.230803,86654.0,86651.0,0.09847377]
[1741043527611,0.230789,86660.0,86651.0,0.09847377]
[1741043527873,0.230796,86657.0,86652.0,0.230808]
[1741043528072,0.230796,86657.0,86652.0,0.00011836]
[1741043528246,0.346096,86681.0,86655.0,0.230798]
[1741043528434,0.230773,86665.0,86653.0,0.00519377]
[1741043528635,0.230802,86654.0,86652.0,0.00011836]
[1741043528844,0.230805,86653.0,86652.0,0.00011836]
[1741043529045,0.530805,86653.0,86652.0,0.00011836]
[1741043530156,0.530105,86653.0,86652.0,0.00711836]
[1741043530530,0.530105,86653.0,86652.0,0.00011836]
[1741043532594,0.533105,86653.0,86652.0,0.00011836]
[1741043532785,0.303,86653.0,86652.0,0.00011836]
[1741043532949,0.533805,86653.0,86652.0,0.00011836]
[1741043533149,0.303,86653.0,86652.0,0.00011836]
[1741043533347,0.3,86653.0,86652.0,0.00538333]
[1741043533749,0.3,86653.0,86652.0,0.00011836]
[1741043533951,0.3,86653.0,86652.0,0.00538333]
[1741043534181,0.3,86653.0,86652.0,0.00011836]
[1741043534385,0.0001697,86667.0,86652.0,0.00538333]
[1741043534635,0.0001697,86667.0,86665.0,0.0783]
[1741043534928,0.0001697,86667.0,86652.0,0.00011836]
[1741043534929,0.230778,86663.0,86662.0,0.09324]
[1741043535334,0.230778,86663.0,86662.0,0.09850497]
[1741043535489,0.530778,86663.0,86662.0,0.09324]
[1741043535908,0.230778,86663.0,86662.0,0.09324]
[1741043536327,0.230778,86663.0,86662.0,0.09724]
[1741043537322,0.3,86665.0,86662.0,0.09724]
[1741043537524,0.530775,86665.0,86662.0,0.09724]
[1741043537722,0.230776,86664.0,86663.0,0.00526497]
[1741043537948,0.230778,86663.0,86662.0,0.09724]
[1741043538553,0.230778,86663.0,86662.0,0.09324]
[1741043538744,0.230778,86663.0,86662.0,0.09724]
[1741043539264,0.230778,86663.0,86662.0,0.09324]
[1741043539687,0.25232119,86663.0,86662.0,0.09824]
[1741043541398,0.25232119,86663.0,86662.0,0.005]
[1741043542754,0.230789,86659.0,86658.0,0.0003394]
[1741043543311,0.230788,86660.0,86658.0,0.0003394]
[1741043543523,0.32154319,86659.0,86658.0,0.00560437]
[1741043543729,0.55233219,86659.0,86658.0,0.0003394]
[1741043544043,0.32154319,86659.0,86658.0,0.2311314]
[1741043544228,0.32154319,86659.0,86658.0,0.23639637]
[1741043544436,0.32154319,86659.0,86658.0,0.00560437]
[1741043544646,0.02154319,86659.0,86658.0,0.00560437]
[1741043545096,0.25233219,86659.0,86658.0,0.0033394]
[1741043546016,0.02154319,86659.0,86658.0,0.0033394]
[1741043546277,0.02154319,86659.0,86658.0,0.00857355]
[1741043546434,0.02154319,86659.0,86658.0,0.2341314]
[1741043546635,0.02154319,86659.0,86658.0,0.23936555]
[1741043547270,0.02154319,86659.0,86658.0,0.2539064]
[1741043547471,0.02154319,86659.0,86658.0,0.3350064]
[1741043549685,0.02154319,86659.0,86658.0,0.32046555]
[1741043550309,0.02154319,86659.0,86658.0,0.3350064]
[1741043550521,0.02154319,86659.0,86658.0,0.3848064]
[1741043551387,0.02154319,86659.0,86658.0,0.3818064]
[1741043551604,0.02154319,86659.0,86658.0,0.3888064]
[1741043554529,0.02154319,86659.0,86658.0,0.3818064]
[1741043555239,0.02154319,86659.0,86658.0,0.3888064]
[1741043556831,1.9e-07,86659.0,86658.0,0.3888064]
[1741043557065,0.005,86683.0,86666.0,0.36901185]
[1741043557066,8.9e-07,86667.0,86666.0,0.36901185]
[1741043557535,8.9e-07,86667.0,86666.0,0.37406316]
[1741043558238,8.9e-07,86667.0,86666.0,0.36901185]
[1741043559188,8.9e-07,86667.0,86666.0,0.37601185]
[1741043559423,8.9e-07,86667.0,86666.0,0.361471]
[1741043559654,8.9e-07,86667.0,86666.0,0.17762]
[1741043559988,8.9e-07,86667.0,86666.0,0.19216085]
[1741043560195,8.9e-07,86667.0,86666.0,0.0845]
[1741043560393,0.53076889,86667.0,86666.0,0.007]
[1741043560821,0.230785,86661.0,86658.0,0.0003394]
[1741043561022,0.230788,86660.0,86658.0,0.0003394]
[1741043561583,0.230789,86659.0,86658.0,0.0003394]
[1741043562508,0.230786,86661.0,86658.0,0.0003394]
[1741043562720,8.9e-07,86667.0,86658.0,0.0003394]
[1741043562951,0.230789,86659.0,86658.0,0.0003394]
[1741043563831,0.230776,86664.0,86659.0,0.230787]
[1741043563980,8.9e-07,86667.0,86658.0,0.0003394]
[1741043564181,8.9e-07,86667.0,86666.0,0.230771]
[1741043564645,8.9e-07,86667.0,86666.0,0.24531185]
[1741043565582,8.9e-07,86667.0,86666.0,0.32751185]
[1741043565814,8.9e-07,86667.0,86666.0,0.33151185]
[1741043566620,8.9e-07,86667.0,86666.0,0.37721185]
[1741043567346,8.9e-07,86667.0,86666.0,0.37321185]
[1741043567630,0.3,86701.0,86695.0,0.230692]
[1741043567815,0.230686,86698.0,86696.0,0.09308]
[1741043568075,0.230688,86697.0,86696.0,0.09308]
[1741043568523,0.3,86696.0,86690.0,0.09308]
[1741043569012,0.30011832,86696.0,86690.0,0.323786]
[1741043569482,0.00011832,86696.0,86691.0,0.230702]
[1741043569932,0.30011832,86696.0,86691.0,0.230702]
[1741043570126,0.30011832,86696.0,86690.0,0.09308]
[1741043570127,0.30011832,86696.0,86690.0,0.323785]
[1741043570476,0.230696,86694.0,86690.0,0.09308]
[1741043570675,0.230703,86692.0,86690.0,0.09908]
[1741043571120,0.00011832,86696.0,86690.0,0.09908]
[1741043571346,0.00011832,86696.0,86695.0,0.230693]
[1741043571543,0.00011832,86696.0,86694.0,0.230694]
[1741043571705,0.00011832,86696.0,86693.0,0.230697]
[1741043571904,0.00011832,86696.0,86693.0,0.230698]
[1741043572101,0.00011832,86696.0,86690.0,0.09308]
[1741043572355,0.00011832,86696.0,86694.0,0.230694]
[1741043572550,0.00011832,86696.0,86695.0,0.230693]
[1741043573219,0.00011832,86696.0,86694.0,0.230696]
[1741043573423,0.00011832,86696.0,86693.0,0.24523985]
[1741043573626,0.00011832,86696.0,86695.0,0.006]
[1741043574054,0.00011832,86696.0,86690.0,0.09308]
[1741043574507,0.00011832,86696.0,86695.0,0.01454085]
[1741043574710,0.00011832,86696.0,86694.0,0.006]
[1741043574872,0.00011832,86696.0,86695.0,0.09304]
[1741043575259,0.00011832,86696.0,86690.0,0.006]
[1741043575468,0.230704,86691.0,86690.0,0.006]
[1741043575850,0.530704,86691.0,86690.0,0.006]
[1741043576211,0.576004,86691.0,86690.0,0.006]
[1741043576641,0.530765,86668.0,86667.0,0.09304]
[1741043577892,0.530765,86668.0,86667.0,0.10004]
[1741043578737,0.3,86668.0,86667.0,0.10004]
[1741043579441,0.530765,86668.0,86667.0,0.10004]
[1741043580031,0.3,86668.0,86667.0,0.10004]
[1741043580835,0.3,86668.0,86667.0,0.330808]
[1741043581040,0.3,86668.0,86667.0,0.10004]
[1741043581246,0.530765,86668.0,86667.0,0.10004]
[1741043581847,0.530765,86668.0,86667.0,0.007]
[1741043582675,0.530765,86668.0,86666.0,0.0003392]
[1741043582676,0.3,86667.0,86666.0,0.0003392]
[1741043582877,0.530768,86667.0,86666.0,0.0003392]
[1741043583084,0.3,86667.0,86666.0,0.0003392]
[1741043583629,0.530768,86667.0,86666.0,0.0003392]
[1741043583798,0.530768,86667.0,86666.0,0.0043392]
[1741043584419,0.530768,86667.0,86666.0,0.0003392]
[1741043584711,0.530768,86667.0,86666.0,0.0033392]
[1741043585085,0.230768,86667.0,86666.0,0.0033392]
[1741043586100,0.44973533,86690.0,86666.0,0.0033392]
[1741043586295,0.230766,86668.0,86666.0,0.0003392]
[1741043586544,0.230767,86668.0,86666.0,0.0033392]
[1741043586703,0.230768,86667.0,86666.0,0.0033392]
[1741043587120,0.230768,86667.0,86666.0,0.0003392]
[1741043587319,0.230764,86669.0,86666.0,0.0003392]
[1741043587522,0.230761,86670.0,86666.0,0.0033392]
[1741043587904,0.230761,86670.0,86666.0,0.0003392]
[1741043588111,0.230768,86667.0,86666.0,0.0003392]
[1741043589143,0.230768,86667.0,86666.0,0.0033392]
[1741043589774,0.230768,86667.0,86666.0,0.0003392]
[1741043589990,0.230768,86667.0,86666.0,0.0043392]
[1741043591705,0.3453,86691.0,86666.0,0.0043392]
[1741043591907,0.230768,86667.0,86666.0,0.0043392]
[1741043592075,0.530768,86667.0,86666.0,0.0043392]
[1741043592272,0.230664,86706.0,86675.0,0.01291056]
[1741043592485,0.230744,86677.0,86675.0,0.01291056]
[1741043592676,0.230744,86676.0,86675.0,0.01291056]
[1741043592915,0.530744,86676.0,86675.0,0.01291056]
[1741043593071,0.3,86676.0,86675.0,0.01291056]
[1741043593274,0.530744,86676.0,86675.0,0.01291056]
[1741043593729,0.530744,86676.0,86675.0,0.01391056]
[1741043594055,0.530744,86676.0,86675.0,0.001]
[1741043594245,0.3,86670.0,86668.0,0.01291056]
[1741043595129,0.3,86670.0,86668.0,0.24367356]
[1741043595415,0.230728,86682.0,86666.0,0.0808392]
[1741043595416,0.3234,86710.0,86666.0,0.0003392]
[1741043595561,0.530768,86667.0,86666.0,0.0003392]
[1741043596366,0.530789,86659.0,86646.0,0.09296]
[1741043597034,0.530789,86659.0,86643.0,6.943e-05]
[1741043597773,0.530789,86659.0,86658.0,0.0033394]
[1741043598685,0.530789,86659.0,86643.0,6.943e-05]
[1741043598686,0.530802,86654.0,86643.0,6.943e-05]
[1741043599953,0.530802,86654.0,86653.0,0.0053394]
[1741043600255,0.530802,86654.0,86653.0,4e-07]
[1741043600476,0.854202,86654.0,86653.0,4e-07]
[1741043601118,0.53081,86651.0,86650.0,0.0002998]
[1741043601311,0.230888,86622.0,86621.0,0.08]
[1741043601759,0.230893,86620.0,86619.0,0.01291056]
[1741043602577,0.230912,86613.0,86609.0,0.00499]
[1741043602950,0.53092,86610.0,86609.0,0.00499]
[1741043603352,0.3,86606.0,86579.0,0.0003392]
[1741043603503,0.530957,86596.0,86579.0,0.0003392]
[1741043604299,0.96900895,86596.0,86579.0,0.0003392]
[1741043604505,0.854357,86596.0,86579.0,0.0003392]
[1741043605106,0.89259124,86596.0,86579.0,0.0003392]
[1741043605444,0.91095907,86596.0,86579.0,0.0003392]
[1741043606637,0.99804851,86596.0,86595.0,6e-07]
[1741043607409,0.99804851,86596.0,86582.0,1e-08]
[1741043607410,0.08708944,86594.0,86582.0,1e-08]
[1741043607610,0.530992,86583.0,86582.0,1e-08]
[1741043607792,0.530997,86581.0,86580.0,2.1e-07]
[1741043612038,0.530997,86581.0,86580.0,0.00039491]
[1741043613262,0.61808644,86581.0,86580.0,0.00039491]
[1741043613632,0.530997,86581.0,86580.0,0.00039491]
[1741043615210,0.530997,86581.0,86579.0,0.0003392]
[1741043615211,0.531,86580.0,86579.0,1.1e-07]
[1741043615374,0.531,86580.0,86579.0,0.00011847]
[1741043615811,0.531,86580.0,86579.0,4.7e-07]
[1741043616161,0.531,86580.0,86568.0,8.7e-07]
[1741043616162,0.08708944,86575.0,86568.0,8.7e-07]
[1741043616337,0.08708944,86575.0,86568.0,6e-08]
[1741043616338,0.531029,86569.0,86568.0,6e-08]
[1741043618337,0.531066,86555.0,86554.0,4.6e-07]
[1741043618595,0.531066,86555.0,86554.0,0.00011891]
[1741043618954,0.531066,86555.0,86545.0,0.0006392]
[1741043618955,0.23109,86546.0,86545.0,1.1e-07]
[1741043619157,0.85449,86546.0,86545.0,0.00011858]
[1741043620730,0.88262576,86546.0,86545.0,0.00011858]
[1741043621266,0.85449,86546.0,86545.0,0.00011858]
[1741043622377,0.88262576,86546.0,86545.0,0.00011858]
[1741043622589,0.85449,86546.0,86545.0,0.00011858]
[1741043622803,0.85449,86546.0,86545.0,0.12241858]
[1741043623253,0.53109,86546.0,86545.0,0.12241858]
[1741043623622,0.3,86546.0,86545.0,0.12241858]
[1741043624027,0.3234,86571.0,86545.0,0.12241858]
[1741043624028,0.3234,86571.0,86548.0,0.01291056]
[1741043624356,0.3234,86595.0,86563.0,0.08]
[1741043624558,0.531042,86564.0,86563.0,0.08]
[1741043624765,0.23108,86550.0,86549.0,0.0803]
[1741043626334,0.53108,86550.0,86549.0,0.0803]
[1741043626882,0.59697228,86550.0,86549.0,0.0803]
[1741043627094,0.53108,86550.0,86549.0,0.0803]
[1741043628210,0.53108,86550.0,86549.0,0.0796]
[1741043629267,0.53109,86546.0,86545.0,0.04701858]
[1741043630042,0.53109,86546.0,86545.0,0.00011858]
[1741043631283,0.53109,86546.0,86545.0,0.08231858]
[1741043632094,0.53109,86546.0,86545.0,0.09522914]
[1741043633533,0.53109,86546.0,86545.0,0.08231858]
[1741043634418,0.3,86547.0,86545.0,0.08231858]
[1741043634562,0.23109,86546.0,86545.0,0.08231858]
[1741043639717,0.23109,86546.0,86545.0,0.00011858]
[1741043640729,0.231082,86549.0,86545.0,0.00011858]
[1741043640935,0.231082,86549.0,86545.0,0.01302914]
[1741043640936,0.23109,86546.0,86545.0,0.01302914]
[1741043641163,0.3,86548.0,86546.0,0.01291056]
[1741043641364,0.3,86548.0,86545.0,0.00011858]
[1741043641541,0.3,86548.0,86546.0,0.01291056]
[1741043641775,0.0001699,86550.0,86545.0,0.00011858]
[1741043641776,0.0001699,86550.0,86549.0,0.24399256]
[1741043643164,0.0001699,86550.0,86549.0,0.34399256]
[1741043643376,0.0001699,86550.0,86549.0,0.1773]
[1741043643731,0.0001699,86550.0,86549.0,0.408382]
[1741043644334,0.0001699,86550.0,86549.0,0.1773]
[1741043644585,0.0001699,86550.0,86549.0,0.19021056]
[1741043645023,0.0001699,86550.0,86549.0,0.408382]
[1741043645323,0.0001699,86550.0,86549.0,0.42129256]
[1741043645499,0.0001699,86550.0,86549.0,0.1773]
[1741043645812,0.0001699,86550.0,86549.0,0.42129256]
[1741043646166,0.0001699,86550.0,86549.0,0.1773]
[1741043646618,0.0001699,86550.0,86549.0,0.19021056]
[1741043646818,0.0001699,86550.0,86549.0,0.42129256]
[1741043648431,0.2312499,86550.0,86547.0,0.1]
[1741043648663,0.53109,86546.0,86545.0,0.00011858]
[1741043651050,0.531101,86542.0,86541.0,5.8e-07]
[1741043652277,0.94159044,86542.0,86541.0,5.8e-07]
[1741043652485,0.98426705,86542.0,86541.0,5.8e-07]
[1741043652817,1.11184924,86542.0,86541.0,5.8e-07]
[1741043652962,1.11184924,86542.0,86509.0,0.0832394]
[1741043652963,0.531189,86509.0,86508.0,3.8e-07]
[1741043653360,0.531189,86509.0,86508.0,0.0001189]
[1741043654361,0.3,86509.0,86487.0,0.0461]
[1741043654562,0.231229,86494.0,86493.0,0.00073462]
[1741043657010,0.3,86496.0,86494.0,0.01291056]
[1741043657211,0.531224,86496.0,86495.0,0.01291056]
[1741043657414,0.3234,86523.0,86503.0,0.0451]
[1741043657415,0.231175,86515.0,86503.0,0.0451]
[1741043657614,0.531203,86504.0,86503.0,0.0451]
[1741043657856,0.3,86504.0,86503.0,0.0451]
[1741043658113,0.531203,86504.0,86503.0,0.0451]
[1741043659278,0.531229,86494.0,86493.0,0.00073462]
[1741043659578,0.531229,86494.0,86493.0,6.2e-07]
[1741043659797,0.94171844,86494.0,86493.0,6.2e-07]
[1741043660010,0.94171844,86494.0,86481.0,2.2e-07]
[1741043660011,0.38708944,86485.0,86481.0,2.2e-07]
[1741043660200,0.531261,86482.0,86481.0,8.3e-07]
[1741043661334,0.531261,86482.0,86458.0,0.0839296]
[1741043661335,0.08708944,86473.0,86458.0,0.0053296]
[1741043661514,0.53131,86464.0,86458.0,0.0053296]
[1741043662126,0.531323,86459.0,86458.0,0.00444765]
[1741043669028,0.61841244,86459.0,86458.0,0.00444765]
[1741043669203,0.73306439,86459.0,86458.0,0.00444765]
[1741043669813,0.64597495,86459.0,86458.0,0.00444765]
[1741043670028,0.3,86459.0,86458.0,0.00444765]
[1741043670342,0.3234,86481.0,86466.0,0.01291056]
[1741043670496,0.231275,86478.0,86475.0,0.0778]
[1741043670698,0.231278,86476.0,86475.0,0.0778]
[1741043671180,0.531278,86476.0,86475.0,0.0778]
[1741043671330,0.531278,86476.0,86467.0,0.0928]
[1741043671331,0.231299,86468.0,86467.0,0.0767]
[1741043672053,0.3,86476.0,86467.0,0.0767]
[1741043672054,0.3,86476.0,86470.0,0.1]
[1741043672251,0.231291,86471.0,86470.0,0.1]
[1741043672671,0.231299,86468.0,86467.0,0.0767]
[1741043672870,0.231297,86469.0,86467.0,0.0767]
[1741043673038,0.231296,86470.0,86468.0,0.1]
[1741043673232,0.462592,86470.0,86467.0,0.0767]
[1741043673530,0.3,86476.0,86470.0,0.1]
[1741043673748,0.01813568,86580.0,86462.0,0.09276]
[1741043673749,0.3234,86497.0,86481.0,0.11291056]
[1741043673957,0.8991698,86547.0,86481.0,0.11291056]
[1741043673958,0.3234,86527.0,86493.0,0.46964256]
[1741043674168,0.034816,86528.0,86493.0,0.57694341]
[1741043674378,0.3234,86541.0,86493.0,0.89844341]
[1741043674576,0.3,86529.0,86498.0,0.34412956]
[1741043674813,0.02541096,86499.0,86498.0,0.13841056]
[1741043675415,0.231205,86504.0,86500.0,0.1]
[1741043675616,0.231212,86501.0,86498.0,0.13841056]
[1741043675820,0.23118,86513.0,86498.0,0.13841056]
[1741043676023,0.3,86517.0,86506.0,0.11291056]
[1741043676224,0.231184,86511.0,86506.0,0.11291056]
[1741043676425,0.3,86517.0,86506.0,0.1]
[1741043676647,0.3,86517.0,86499.0,0.01291056]
[1741043676777,0.231199,86506.0,86505.0,0.1]
[1741043677121,0.231192,86509.0,86505.0,0.1]
[1741043677324,0.231184,86511.0,86506.0,0.1]
[1741043677823,0.02141316,86508.0,86506.0,0.1]
[1741043678123,0.02141316,86508.0,86505.0,0.1]
[1741043678319,0.02141316,86508.0,86503.0,0.01291056]
[1741043678320,0.231203,86504.0,86503.0,0.01291056]
[1741043678483,0.231198,86506.0,86503.0,0.01291056]
[1741043678685,0.231203,86504.0,86498.0,0.13841056]
[1741043678886,0.02141316,86508.0,86498.0,0.1255]
[1741043679111,0.231216,86499.0,86498.0,0.1255]
[1741043679309,0.231216,86499.0,86498.0,0.13841056]
[1741043679511,0.231212,86501.0,86498.0,0.13841056]
[1741043679512,0.462425,86501.0,86498.0,0.13841056]
[1741043679712,0.231212,86501.0,86498.0,0.13841056]
[1741043679923,0.231216,86499.0,86498.0,0.0459]
[1741043680544,0.25262916,86499.0,86498.0,0.0459]
[1741043680961,0.02141316,86499.0,86498.0,0.05881056]
[1741043681153,0.25262916,86499.0,86498.0,0.0459]
[1741043681337,0.02141316,86499.0,86498.0,0.0459]
[1741043681534,0.25262916,86499.0,86498.0,0.0459]
[1741043681738,0.02141316,86499.0,86498.0,0.39002956]
[1741043681936,0.3,86508.0,86502.0,0.01291056]
[1741043682138,0.3,86508.0,86503.0,0.01291056]
[1741043682761,0.231171,86516.0,86511.0,0.01291056]
[1741043683065,0.30039546,86517.0,86511.0,0.01291056]
[1741043683238,0.00039546,86517.0,86516.0,0.01291056]
[1741043684035,0.00039546,86517.0,86516.0,0.0808]
[1741043684660,0.00039546,86517.0,86516.0,0.09371056]
[1741043685036,0.23156346,86517.0,86516.0,0.09371056]
[1741043685556,0.25303599,86517.0,86516.0,0.09371056]
[1741043685753,0.25303599,86517.0,86516.0,0.0808]
[1741043686320,0.25303599,86517.0,86502.0,0.0827]
[1741043686321,0.10028799,86517.0,86502.0,0.0827]
[1741043686527,0.231205,86503.0,86502.0,0.09561056]
[1741043686980,0.231205,86503.0,86502.0,0.0827]
[1741043687402,0.231216,86499.0,86498.0,0.13858]
[1741043688112,0.3,86529.0,86510.0,0.1]
[1741043688271,0.23118,86513.0,86510.0,0.11291056]
[1741043688612,0.06440898,86541.0,86516.0,0.09561056]
[1741043688819,0.53156346,86517.0,86516.0,0.0827]
[1741043690395,0.30039546,86517.0,86516.0,0.09561056]